bitfinex/quotes_ETHUSD_20251117
["timestamp","ask_amount","ask_price","bid_price","bid_amount"]
[1763394820851,0.002,3133.1,3132.6,0.1816]
[1763394821056,0.002,3133.1,3131.5,0.90699264]
[1763394821057,0.4742,3133.1,3132.0,0.1816]
[1763394821268,0.4742,3133.1,3131.5,0.459]
[1763394821269,0.4742,3133.1,3131.6,0.1816]
[1763394821916,0.4742,3133.1,3131.2,0.1816]
[1763394822111,0.002,3133.1,3131.3,0.459]
[1763394822766,0.002,3133.1,3131.4,0.405504]
[1763394822945,0.002,3133.1,3131.6,0.405504]
[1763394823422,0.002,3133.1,3131.8,0.405504]
[1763394823949,0.002,3133.1,3131.2,0.1816]
[1763394823950,0.002,3133.1,3131.9,0.459]
[1763394824930,0.002,3133.1,3131.2,0.1816]
[1763394824931,0.4722,3133.0,3131.2,0.1816]
[1763394825245,0.4722,3133.0,3131.5,0.459]
[1763394825447,0.1988,3132.9,3131.2,0.1816]
[1763394825853,0.4722,3132.8,3131.2,0.6406]
[1763394826447,0.1988,3132.9,3131.3,0.864504]
[1763394826954,0.1988,3132.9,3131.4,0.459]
[1763394827164,0.4722,3132.8,3131.2,0.1816]
[1763394827915,0.4722,3132.8,3131.2,0.6406]
[1763394828459,0.4722,3132.8,3131.3,0.459]
[1763394828754,0.4722,3132.8,3131.4,0.405504]
[1763394829114,0.4722,3132.8,3131.4,0.459]
[1763394829335,0.1988,3132.9,3131.5,0.405504]
[1763394829768,0.1988,3132.9,3131.2,1.08859264]
[1763394829769,0.1988,3132.9,3131.7,0.405504]
[1763394829967,0.002,3133.1,3132.8,0.1816]
[1763394830171,0.002,3133.5,3132.9,0.405504]
[1763394830378,0.002,3133.5,3133.4,1.31249664]
[1763394830531,0.1988,3135.1,3133.4,2.59751039]
[1763394830532,0.17726537,3135.1,3133.4,2.59751039]
[1763394830872,0.4722,3135.0,3133.4,2.13851039]
[1763394831056,0.4722,3135.0,3133.4,0.82601375]
[1763394831234,0.4722,3135.0,3132.9,0.864504]
[1763394831434,0.17726537,3135.1,3133.3,1.31249664]
[1763394831846,0.4722,3135.0,3133.0,0.459]
[1763394832066,0.4722,3135.0,3133.1,0.405504]
[1763394832273,0.4722,3135.0,3132.4,0.1005]
[1763394832474,0.4722,3135.0,3132.5,0.864504]
[1763394832770,0.405504,3134.9,3132.6,6.94764085]
[1763394832957,0.405504,3134.9,3132.7,0.78121449]
[1763394833160,0.405504,3134.7,3132.4,0.1005]
[1763394833668,0.17726537,3135.1,3131.9,0.459]
[1763394833669,0.405504,3134.5,3131.9,0.459]
[1763394833874,0.405504,3134.5,3132.0,0.1005]
[1763394834072,0.405504,3134.3,3132.0,0.1005]
[1763394834577,0.405504,3134.1,3132.0,0.1005]
[1763394834945,0.405504,3133.9,3132.0,0.1005]
[1763394835539,0.405504,3133.7,3132.0,0.1005]
[1763394835682,0.4722,3133.6,3132.0,0.1005]
[1763394836368,0.4722,3133.6,3131.7,0.459]
[1763394836569,0.4722,3133.6,3131.8,0.1005]
[1763394837380,0.80318989,3135.0,3131.1,0.65128346]
[1763394837381,0.4772,3133.4,3131.1,0.4961]
[1763394837585,0.4772,3133.4,3131.3,0.405504]
[1763394837785,0.4772,3133.4,3130.9,6.94764085]
[1763394837983,0.4772,3133.4,3131.0,0.90699264]
[1763394838882,0.1957,3133.3,3131.2,0.6777]
[1763394839088,0.1957,3133.3,3131.3,0.405504]
[1763394839302,0.6729,3133.3,3131.3,0.901604]
[1763394839504,0.6729,3133.3,3131.5,0.405504]
[1763394839505,0.1957,3133.3,3131.5,0.405504]
[1763394839686,0.6729,3133.3,3131.5,0.405504]
[1763394839884,0.6729,3133.3,3131.6,0.4961]
[1763394840085,0.4772,3133.2,3131.6,0.4961]
[1763394841416,0.4772,3133.2,3131.0,0.1816]
[1763394841417,0.405504,3133.1,3131.0,0.1816]
[1763394841615,0.4772,3133.2,3131.0,0.1816]
[1763394841817,0.882704,3133.1,3131.0,0.1816]
[1763394842325,0.405504,3132.9,3131.0,0.1816]
[1763394842474,0.405504,3132.7,3131.0,0.1816]
[1763394842670,0.4772,3132.8,3131.1,0.03193765]
[1763394842872,0.4772,3132.8,3131.1,0.4961]
[1763394843970,0.4772,3132.8,3131.3,0.001]
[1763394843971,0.405504,3132.7,3131.3,0.001]
[1763394844388,0.1957,3133.3,3131.3,0.001]
[1763394844389,0.405504,3132.5,3131.3,0.001]
[1763394844825,0.405504,3132.3,3131.3,0.001]
[1763394845021,0.4772,3132.2,3131.3,0.001]
[1763394845320,0.405504,3132.1,3131.3,0.001]
[1763394845646,0.1957,3131.4,3131.3,0.001]
[1763394845768,0.4772,3132.0,3131.3,0.001]
[1763394846175,0.6729,3133.3,3131.4,0.4961]
[1763394846426,0.6729,3133.3,3131.3,0.001]
[1763394846637,0.4772,3133.2,3131.3,0.001]
[1763394846777,0.4772,3133.2,3131.3,0.4971]
[1763394847429,0.405504,3133.1,3131.3,0.001]
[1763394847746,0.4772,3133.2,3131.3,0.001]
[1763394847747,0.4772,3133.2,3131.4,0.4961]
[1763394848286,0.405504,3133.1,3131.4,0.4961]
[1763394848473,0.405504,3133.1,3131.3,0.001]
[1763394848707,0.4772,3133.0,3131.3,0.4971]
[1763394849989,0.1957,3133.3,3131.4,1.31249664]
[1763394850175,0.1957,3133.3,3131.5,1.37182375]
[1763394850375,0.1957,3133.3,3131.6,0.4961]
[1763394850607,0.6729,3133.3,3131.6,0.4961]
[1763394851807,0.1957,3133.3,3131.6,0.4961]
[1763394852010,0.4772,3133.2,3131.5,0.87572375]
[1763394852215,0.4772,3133.2,3131.3,0.001]
[1763394852550,0.4772,3133.2,3131.4,0.4961]
[1763394852750,0.4772,3133.2,3131.5,0.405504]
[1763394853107,0.405504,3133.1,3131.3,0.001]
[1763394853507,0.4772,3133.0,3131.4,0.4961]
[1763394853924,0.1957,3133.3,3131.4,0.4961]
[1763394854123,1.1637252,3134.3,3131.8,6.94764085]
[1763394854391,0.4772,3134.3,3131.9,2.03919022]
[1763394854552,0.4772,3134.2,3131.9,1.29136409]
[1763394854763,0.405504,3134.1,3131.3,0.001]
[1763394855068,0.405504,3133.9,3131.3,0.001]
[1763394855411,0.405504,3133.7,3131.3,0.001]
[1763394855617,0.405504,3133.5,3131.3,0.001]
[1763394856029,0.405504,3133.3,3131.3,0.001]
[1763394856553,0.68650385,3133.7,3131.3,0.001]
[1763394856554,0.405504,3133.1,3131.3,0.001]
[1763394856931,0.405504,3132.9,3131.3,0.001]
[1763394857553,0.405504,3132.7,3131.3,0.001]
[1763394857924,0.405504,3132.5,3131.3,0.001]
[1763394858492,0.4908,3132.4,3131.3,0.001]
[1763394859292,0.405504,3132.3,3131.3,0.001]
[1763394859498,0.1849,3131.4,3131.3,0.001]
[1763394859787,0.1849,3131.7,3131.3,0.001]
[1763394859992,0.4908,3131.4,3131.3,0.001]
[1763394860155,0.6757,3131.7,3131.3,0.001]
[1763394860355,0.6749,3131.7,3131.3,0.001]
[1763394860562,0.4908,3131.6,3131.3,0.001]
[1763394860979,0.1841,3131.7,3131.3,0.001]
[1763394861187,0.1849,3132.6,3131.3,0.001]
[1763394861188,0.4908,3132.4,3131.3,0.001]
[1763394861494,0.4908,3132.5,3131.3,0.001]
[1763394861698,0.896304,3132.5,3131.3,0.001]
[1763394861996,0.4908,3132.5,3131.3,0.001]
[1763394862296,0.4908,3132.4,3131.3,0.001]
[1763394862445,0.1849,3132.6,3131.3,0.001]
[1763394862645,0.1849,3132.6,3131.4,0.4889]
[1763394863287,0.1849,3132.9,3131.4,0.4889]
[1763394864145,0.4908,3133.4,3131.4,0.4889]
[1763394864342,0.4908,3133.4,3131.5,0.405504]
[1763394864863,0.4908,3133.4,3131.6,0.4889]
[1763394865062,0.405504,3133.3,3131.6,0.4889]
[1763394865368,0.405504,3133.1,3131.3,0.001]
[1763394865718,0.4908,3133.0,3131.3,0.001]
[1763394866212,0.405504,3132.9,3131.3,0.001]
[1763394866552,0.405504,3132.7,3131.3,0.001]
[1763394867067,0.405504,3132.5,3131.3,0.001]
[1763394867464,0.4817,3132.4,3131.3,0.001]
[1763394867789,0.405504,3132.3,3131.3,0.001]
[1763394867978,0.405504,3132.1,3131.3,0.001]
[1763394868179,0.1842,3131.4,3131.3,0.001]
[1763394868995,0.4817,3132.1,3131.3,0.001]
[1763394869158,1.31249664,3132.3,3131.3,0.001]
[1763394869159,0.1842,3131.6,3131.3,0.001]
[1763394869870,6.49,3132.1,3131.3,0.001]
[1763394870170,0.69717,3132.0,3131.3,0.001]
[1763394870377,1.17887,3132.0,3131.3,0.001]
[1763394870586,0.4817,3131.9,3131.3,0.001]
[1763394870797,0.6659,3131.9,3131.3,0.001]
[1763394871090,0.4817,3131.8,3131.3,0.001]
[1763394871456,0.405504,3131.7,3131.3,0.001]
[1763394871858,0.4817,3131.6,3131.3,0.001]
[1763394872055,0.405504,3131.5,3131.3,0.001]
[1763394872605,0.887204,3131.4,3131.3,0.001]
[1763394873265,0.405504,3131.3,3130.9,0.001]
[1763394873512,0.887204,3131.3,3130.9,0.001]
[1763394873719,0.4817,3131.3,3130.9,0.001]
[1763394873866,0.405504,3131.7,3130.9,0.001]
[1763394874068,0.887204,3131.7,3130.9,0.001]
[1763394874600,0.4817,3131.6,3130.9,0.001]
[1763394875966,18.42892352,3132.4,3130.9,0.001]
[1763394875967,6.9717,3132.1,3130.9,0.001]
[1763394876402,6.9717,3132.1,3130.9,0.4674]
[1763394876587,0.4817,3132.5,3130.9,0.4674]
[1763394877382,8.29892352,3133.4,3130.9,0.4674]
[1763394877383,0.4817,3133.0,3131.1,0.90699264]
[1763394877591,8.29892352,3133.4,3131.1,0.90699264]
[1763394877592,0.4817,3132.5,3131.2,0.92059162]
[1763394877794,0.4817,3132.5,3131.3,0.1824]
[1763394878005,0.4817,3132.5,3130.9,0.4674]
[1763394878006,0.4817,3132.5,3131.0,0.1824]
[1763394878310,0.405504,3132.4,3130.9,0.001]
[1763394878773,0.405504,3132.2,3130.9,0.001]
[1763394879306,0.4817,3132.1,3130.9,0.001]
[1763394879906,0.405504,3132.0,3130.9,0.001]
[1763394880109,0.84531966,3131.9,3130.9,0.001]
[1763394880275,0.4817,3131.8,3130.9,0.001]
[1763394881171,0.405504,3131.7,3130.9,0.001]
[1763394881606,0.4817,3131.7,3130.9,0.001]
[1763394881970,6.9717,3131.7,3130.9,0.001]
[1763394882315,6.49,3131.7,3130.9,0.4674]
[1763394882686,0.1842,3132.0,3130.9,0.4674]
[1763394883210,0.4817,3131.9,3130.9,0.001]
[1763394883412,0.4809,3131.9,3130.9,0.001]
[1763394883570,0.1842,3132.0,3130.9,0.4674]
[1763394883770,0.1842,3132.0,3130.6,0.001]
[1763394883771,0.85162,3132.0,3130.6,0.001]
[1763394883971,0.85162,3132.0,3130.3,0.001]
[1763394883972,0.405504,3130.6,3130.3,0.001]
[1763394884215,0.77012121,3130.5,3130.3,0.001]
[1763394884516,0.405504,3131.1,3130.3,0.001]
[1763394885291,0.70385153,3131.1,3130.3,0.001]
[1763394885607,0.4817,3131.0,3130.3,0.001]
[1763394886614,0.1842,3131.2,3130.3,0.001]
[1763394887216,0.405504,3131.1,3130.3,0.001]
[1763394887589,0.4817,3131.0,3130.3,0.001]
[1763394888205,0.1842,3130.4,3130.3,0.001]
[1763394888381,0.589704,3130.4,3130.3,0.001]
[1763394888605,1.36973364,3130.4,3130.3,0.001]
[1763394888774,1.36973364,3130.4,3129.2,0.001]
[1763394888775,0.405504,3130.3,3129.2,0.001]
[1763394888979,1.18553364,3130.3,3129.2,0.001]
[1763394889188,0.29832964,3130.2,3129.2,0.001]
[1763394889390,0.78002964,3130.2,3129.2,0.001]
[1763394889619,2.24262468,3131.9,3129.2,0.001]
[1763394889620,0.1842,3130.8,3130.1,0.1025]
[1763394889816,0.1842,3131.2,3130.1,0.1025]
[1763394889817,0.4817,3131.1,3130.1,0.1025]
[1763394889979,0.405504,3131.1,3130.1,0.1025]
[1763394890790,0.1842,3131.2,3130.1,0.1025]
[1763394891317,0.2979107,3131.4,3130.1,0.5689]
[1763394891616,0.405504,3131.3,3130.1,0.5689]
[1763394891986,0.405504,3131.3,3130.1,0.1025]
[1763394891987,0.405504,3131.2,3130.1,0.1025]
[1763394892193,0.405504,3131.2,3129.9,0.4674]
[1763394892388,0.405504,3131.0,3129.9,0.001]
[1763394892804,0.405504,3130.8,3129.9,0.001]
[1763394892995,0.70293234,3130.8,3129.9,0.001]
[1763394893191,0.405504,3130.6,3129.9,0.001]
[1763394893488,1.35272193,3131.5,3129.9,0.001]
[1763394893489,0.4817,3132.1,3130.7,0.1025]
[1763394893688,0.77918884,3132.1,3130.7,0.1025]
[1763394893892,0.6659,3132.0,3130.7,0.1025]
[1763394894486,0.405504,3131.9,3130.7,0.1025]
[1763394894702,0.887204,3131.9,3130.7,0.1025]
[1763394894928,0.405504,3131.7,3129.9,0.001]
[1763394895131,0.405504,3130.4,3129.9,0.001]
[1763394895423,1.18458708,3130.3,3129.6,0.001]
[1763394895585,0.405504,3130.1,3129.6,0.001]
[1763394895785,0.405504,3129.9,3129.6,0.001]
[1763394895984,0.70288708,3129.9,3129.6,0.001]
[1763394896223,0.4817,3129.8,3129.6,0.001]
[1763394896424,0.405504,3130.2,3129.6,0.001]
[1763394896596,0.887204,3130.2,3129.6,0.001]
[1763394896797,0.29717915,3130.1,3129.6,0.001]
[1763394897496,0.70268315,3130.4,3129.6,0.001]
[1763394897691,0.29717915,3130.4,3129.6,0.1035]
[1763394897886,0.48137915,3130.5,3129.6,0.1035]
[1763394898090,0.1842,3130.5,3129.6,0.1035]
[1763394898519,1.54322594,3131.6,3129.6,0.1035]
[1763394898719,1.12131234,3131.8,3129.6,0.5912]
[1763394898720,0.1964,3130.8,3129.6,0.5912]
[1763394898886,0.4936,3131.0,3129.6,0.5912]
[1763394898887,0.29721731,3130.9,3129.6,0.5912]
[1763394899095,0.29725268,3130.9,3129.6,0.5912]
[1763394899748,0.29725268,3131.4,3129.6,0.5912]
[1763394900647,0.405504,3131.2,3129.6,0.1035]
[1763394900852,0.405504,3131.0,3129.6,0.001]
[1763394901048,0.29725268,3131.0,3129.7,0.5902]
[1763394901267,0.002,3132.5,3129.8,0.405504]
[1763394901426,0.79138356,3132.4,3130.0,0.405504]
[1763394901629,0.29778356,3132.3,3130.0,0.405504]
[1763394901960,0.29778356,3132.3,3130.2,0.405504]
[1763394902265,0.002,3132.5,3130.1,0.4877]
[1763394902266,0.002,3132.5,3130.7,0.405504]
[1763394902560,0.002,3132.5,3130.9,0.405504]
[1763394903067,0.002,3132.5,3131.0,0.4877]
[1763394903854,0.002,3132.5,3131.1,0.405504]
[1763394904257,0.002,3132.5,3131.3,0.405504]
[1763394904565,0.002,3132.5,3131.2,0.4877]
[1763394904776,0.002,3132.5,3131.3,0.405504]
[1763394905127,0.002,3132.5,3130.7,4.10115608]
[1763394905128,0.002,3132.5,3131.4,0.4877]
[1763394905450,0.4956,3132.5,3130.8,0.4877]
[1763394905966,0.002,3132.5,3130.8,0.4877]
[1763394906165,0.002,3132.5,3130.9,0.405504]
[1763394906366,0.002,3132.5,3131.0,0.4877]
[1763394906566,0.002,3132.5,3130.6,0.6291]
[1763394906567,0.4936,3132.4,3130.6,0.6291]
[1763394906770,0.70245467,3132.3,3129.6,0.001]
[1763394906941,0.405504,3132.1,3129.6,0.001]
[1763394907139,0.405504,3132.1,3129.6,0.4887]
[1763394907140,0.405504,3131.9,3129.6,0.4887]
[1763394907339,0.405504,3131.9,3129.8,0.4877]
[1763394907655,0.4948,3132.5,3129.9,0.405504]
[1763394907854,0.4948,3132.5,3130.1,0.405504]
[1763394908389,0.4948,3132.5,3130.3,0.405504]
[1763394908594,0.0012,3132.5,3130.4,0.4877]
[1763394908871,0.4936,3132.4,3130.4,0.4877]
[1763394909230,0.7021758,3132.3,3130.4,0.4877]
[1763394909866,0.4936,3132.2,3130.4,0.4877]
[1763394912739,0.405504,3132.0,3129.7,0.1025]
[1763394912935,0.405504,3131.8,3129.9,0.4877]
[1763394913234,0.405504,3131.8,3129.7,0.1025]
[1763394913235,1.31249664,3131.6,3129.7,0.1025]
[1763394913547,1.31249664,3131.4,3129.6,0.001]
[1763394913765,0.405504,3131.2,3129.6,0.001]
[1763394914234,0.405504,3131.0,3129.6,0.001]
[1763394914562,1.40059264,3131.4,3129.7,0.4877]
[1763394914771,0.83736423,3131.3,3129.7,0.4877]
[1763394914931,0.4936,3131.3,3129.7,0.4877]
[1763394915286,0.1964,3131.5,3129.7,0.4877]
[1763394915464,0.899104,3131.4,3129.7,0.4877]
[1763394915645,0.4936,3131.3,3129.7,0.4877]
[1763394915847,0.1964,3131.9,3129.8,0.405504]
[1763394916263,0.4936,3131.8,3130.0,0.405504]
[1763394916435,0.405504,3131.7,3129.9,0.4877]
[1763394916983,0.4936,3131.7,3129.9,0.4877]
[1763394917840,0.4936,3131.7,3130.0,0.405504]
[1763394918041,0.4936,3131.7,3130.1,0.5606]
[1763394918256,0.1964,3131.9,3130.2,0.405504]
[1763394918539,0.4711,3131.8,3130.1,0.5606]
[1763394918766,0.1964,3131.9,3130.1,0.5606]
[1763394919274,0.6675,3131.9,3130.1,0.5606]
[1763394919477,0.405504,3131.8,3130.1,0.5606]
[1763394919682,1.17418633,3131.8,3130.1,0.1025]
[1763394919984,0.405504,3131.6,3129.6,0.001]
[1763394920134,0.405504,3131.6,3129.7,0.4581]
[1763394920339,0.405504,3131.6,3129.6,0.001]
[1763394920340,0.405504,3131.4,3129.6,0.4591]
[1763394920563,0.70308633,3131.4,3129.6,0.4591]
[1763394920753,0.4711,3131.3,3129.6,0.4591]
[1763394921155,0.90699264,3131.2,3129.6,0.4591]
[1763394921388,0.78680926,3131.1,3129.6,0.4591]
[1763394921542,1.25790926,3131.1,3129.6,0.001]
[1763394921739,1.25790926,3131.1,3129.7,0.4581]
[1763394922482,1.25790926,3131.1,3129.6,0.001]
[1763394922483,0.405504,3130.9,3129.6,0.001]
[1763394922667,0.70253325,3130.9,3129.6,0.001]
[1763394922867,0.405504,3130.7,3129.6,0.001]
[1763394923381,0.78680926,3131.1,3129.7,1.36509264]
[1763394923581,0.4711,3131.0,3129.8,0.98979694]
[1763394923884,0.405504,3130.9,3129.6,0.001]
[1763394924259,0.1931,3131.4,3129.7,0.4581]
[1763394924442,0.1931,3131.4,3129.6,0.001]
[1763394924443,0.598604,3129.7,3129.6,0.001]
[1763394924797,0.598604,3129.7,3129.2,0.001]
[1763394924798,0.876604,3129.6,3127.3,0.5995]
[1763394924945,0.405504,3129.4,3127.3,0.5995]
[1763394925286,0.4711,3129.3,3127.3,0.5995]
[1763394925586,0.405504,3129.6,3128.3,0.1065]
[1763394925753,0.1931,3129.7,3128.3,0.5646]
[1763394926261,0.6642,3129.7,3128.3,0.5646]
[1763394926458,0.1931,3129.7,3128.3,0.5646]
[1763394926677,0.1931,3130.0,3129.1,0.1414]
[1763394927190,0.1931,3130.2,3129.1,0.1414]
[1763394927395,0.405504,3130.1,3128.3,0.5725]
[1763394927603,0.405504,3130.1,3128.7,0.466]
[1763394927905,0.6552,3130.2,3128.7,0.466]
[1763394928049,0.6552,3130.2,3128.8,0.466]
[1763394928383,0.1838,3130.5,3129.1,0.466]
[1763394928586,0.1838,3130.5,3128.7,8.53187681]
[1763394928587,0.4621,3130.4,3128.7,0.466]
[1763394928786,0.405504,3130.3,3128.3,0.5725]
[1763394928986,0.70158231,3130.3,3128.3,0.1065]
[1763394929190,0.4621,3130.2,3128.3,0.1065]
[1763394929486,0.4613,3130.2,3128.3,0.5725]
[1763394929699,0.405504,3130.1,3128.3,0.5725]
[1763394929875,0.405504,3130.1,3128.7,0.466]
[1763394930258,0.1838,3130.5,3128.3,0.5725]
[1763394930259,0.405504,3130.3,3128.3,0.5725]
[1763394930463,0.405504,3130.1,3128.3,0.1065]
[1763394930685,0.405504,3130.1,3127.8,0.466]
[1763394930686,0.405504,3129.9,3127.8,0.466]
[1763394930993,0.405504,3129.7,3127.8,0.466]
[1763394931302,0.405504,3129.5,3127.8,0.466]
[1763394931468,0.49369342,3129.6,3127.3,9.13927681]
[1763394931469,0.4621,3129.6,3127.3,9.13927681]
[1763394931669,0.4621,3129.5,3127.4,0.90699264]
[1763394931915,0.95579342,3129.5,3127.3,8.67327681]
[1763394932075,0.4621,3129.4,3128.2,0.466]
[1763394932806,0.405504,3130.2,3128.2,0.466]
[1763394933011,0.29585691,3130.2,3129.1,0.1414]
[1763394933220,0.4621,3130.1,3128.9,0.001]
[1763394933429,0.405504,3130.0,3128.9,0.001]
[1763394933878,0.405504,3129.8,3128.9,0.001]
[1763394934310,0.405504,3129.6,3128.9,0.001]
[1763394934479,0.405504,3129.4,3128.9,0.001]
[1763394934896,0.4621,3129.3,3128.9,0.001]
[1763394936009,0.405504,3129.6,3128.9,0.001]
[1763394936192,0.405504,3129.5,3128.9,0.001]
[1763394936601,0.4621,3129.4,3128.9,0.001]
[1763394936832,0.405504,3129.3,3128.9,0.001]
[1763394937157,0.405504,3129.2,3128.6,0.001]
[1763394937291,0.1838,3128.7,3128.6,0.001]
[1763394937829,0.6459,3128.7,3128.6,0.001]
[1763394938043,1.051404,3128.7,3128.6,0.001]
[1763394938194,0.1838,3128.7,3128.6,0.001]
[1763394938394,1.051404,3128.7,3128.6,0.001]
[1763394938589,0.405504,3128.6,3128.3,0.001]
[1763394938827,0.405504,3128.4,3128.3,0.001]
[1763394939092,0.405504,3128.4,3126.9,0.1444]
[1763394939093,0.89919742,3128.4,3126.9,0.1444]
[1763394939434,0.18406261,3128.5,3126.9,0.1444]
[1763394939435,0.405504,3128.2,3126.9,0.1444]
[1763394939729,0.405504,3128.2,3126.9,0.6104]
[1763394939900,0.405504,3128.4,3126.9,0.6104]
[1763394940092,0.405504,3128.4,3127.0,0.466]
[1763394940287,0.64616261,3128.5,3126.9,0.1444]
[1763394940288,0.405504,3128.2,3126.9,0.1444]
[1763394940710,0.4621,3128.2,3126.9,0.1444]
[1763394941242,0.405504,3128.1,3126.5,0.1444]
[1763394941422,1.19442269,3128.1,3126.5,0.1444]
[1763394941631,0.16565227,3128.0,3126.6,0.466]
[1763394941807,0.4621,3128.4,3126.6,0.466]
[1763394942132,0.1838,3127.9,3126.6,0.466]
[1763394942435,0.405504,3128.3,3126.6,0.466]
[1763394943037,0.867604,3128.3,3126.6,0.466]
[1763394943198,0.4621,3128.3,3126.6,0.466]
[1763394943391,0.1838,3129.2,3128.2,0.1463]
[1763394943592,0.4621,3129.1,3127.6,0.466]
[1763394943837,0.405504,3129.0,3127.6,0.466]
[1763394944032,0.4621,3129.1,3127.0,0.6123]
[1763394944242,0.4621,3129.0,3127.0,0.6123]
[1763394944537,0.405504,3128.9,3127.1,0.466]
[1763394945036,0.405504,3128.7,3127.1,0.466]
[1763394945502,0.405504,3128.7,3127.0,0.1463]
[1763394945503,0.405504,3128.5,3127.0,0.1463]
[1763394945711,0.405504,3128.5,3126.5,0.1444]
[1763394946000,0.405504,3128.3,3126.5,0.1444]
[1763394946229,0.4621,3128.2,3126.6,0.466]
[1763394946554,0.4621,3128.5,3126.6,0.466]
[1763394947247,0.405504,3128.3,3126.6,0.466]
[1763394947612,0.86356555,3129.2,3126.6,0.466]
[1763394947800,0.405504,3128.6,3126.6,0.466]
[1763394948000,0.70061562,3128.6,3126.5,0.1444]
[1763394948226,0.405504,3128.4,3126.5,0.6104]
[1763394948404,0.4621,3128.3,3126.6,0.466]
[1763394948602,0.7006727,3128.2,3126.5,0.1444]
[1763394948801,0.7006727,3128.2,3126.6,0.466]
[1763394949116,0.405504,3128.4,3126.6,0.466]
[1763394949322,0.70091916,3128.4,3126.6,0.466]
[1763394949505,0.405504,3128.2,3126.6,0.466]
[1763394949913,0.90699264,3128.8,3126.6,0.466]
[1763394949914,0.405504,3128.0,3126.6,0.466]
[1763394950327,0.1838,3127.9,3126.6,0.466]
[1763394950811,0.4621,3127.8,3126.6,0.466]
[1763394951024,0.1838,3128.1,3126.7,0.0319826]
[1763394951250,0.405504,3128.2,3126.8,0.466]
[1763394951552,0.7011429,3128.2,3126.8,0.466]
[1763394951753,0.405504,3128.0,3126.5,0.1444]
[1763394951913,0.405504,3128.0,3126.5,0.6104]
[1763394952114,0.4621,3127.9,3126.5,0.6104]
[1763394952333,0.4621,3127.9,3126.6,0.466]
[1763394952538,0.405504,3128.2,3126.6,0.466]
[1763394952949,0.70142029,3128.2,3126.6,0.466]
[1763394953235,0.405504,3128.2,3126.7,8.31864632]
[1763394953463,0.002,3129.2,3128.1,0.1467]
[1763394953936,0.002,3129.2,3128.1,0.6127]
[1763394954643,0.002,3129.2,3128.1,0.1467]
[1763394954861,0.002,3129.2,3128.2,0.466]
[1763394957255,0.002,3129.2,3128.1,0.1467]
[1763394957455,0.405504,3129.1,3128.1,0.1467]
[1763394957680,0.70144456,3129.1,3128.1,0.1467]
[1763394957996,0.5017,3129.2,3128.1,0.1467]
[1763394958299,0.5017,3129.2,3128.2,0.4914]
[1763394958300,0.002,3129.2,3128.2,0.4914]
[1763394959580,0.002,3129.2,3128.1,0.1467]
[1763394959787,0.29847861,3129.2,3128.2,0.4914]
[1763394959989,0.002,3129.2,3128.2,0.4914]
[1763394960199,0.002,3129.2,3129.1,0.1414]
[1763394960401,1.04057227,3130.0,3129.1,0.1414]
[1763394960402,0.18334427,3130.0,3129.1,0.1414]
[1763394960711,0.29686889,3129.9,3129.1,0.1414]
[1763394961017,0.79656889,3129.9,3128.8,0.1419]
[1763394961172,0.79656889,3129.9,3128.1,0.6381]
[1763394961173,0.405504,3129.7,3128.1,0.6381]
[1763394961361,0.29686889,3129.6,3128.3,8.31864632]
[1763394961565,0.4997,3130.2,3128.2,0.4914]
[1763394961566,0.29686889,3129.7,3128.7,8.31864632]
[1763394961789,0.9817109,3130.4,3128.7,8.31864632]
[1763394961988,0.29686889,3130.3,3128.8,1.32326463]
[1763394962201,0.29686889,3130.3,3128.9,0.4914]
[1763394962407,0.6835,3130.5,3128.9,0.4914]
[1763394962408,0.29686889,3130.4,3128.9,0.4914]
[1763394962788,0.4997,3130.3,3128.9,0.4914]
[1763394963104,0.29686889,3130.2,3128.6,0.4914]
[1763394963268,0.29686889,3130.2,3128.3,0.90699264]
[1763394963269,0.405504,3130.1,3128.3,0.90699264]
[1763394963600,0.405504,3130.1,3128.4,0.4914]
[1763394963601,0.405504,3129.9,3128.4,0.4914]
[1763394963798,0.70237289,3129.9,3128.4,0.4914]
[1763394964009,0.405504,3129.7,3128.4,0.4914]
[1763394964179,0.1982,3128.5,3127.6,0.4914]
[1763394964364,0.29686889,3129.6,3127.8,8.31864632]
[1763394964365,0.405504,3129.4,3127.8,8.31864632]
[1763394964564,0.1982,3128.9,3127.6,0.4914]
[1763394965114,0.29686889,3129.2,3127.6,1.4631039]
[1763394965408,0.29686889,3129.2,3127.6,0.4914]
[1763394965607,0.29686889,3129.2,3127.7,0.4914]
[1763394965812,0.79656889,3129.3,3127.7,0.4914]
[1763394966112,0.70237289,3129.2,3127.7,0.4914]
[1763394966314,1.20207289,3129.2,3127.7,0.4914]
[1763394966484,0.405504,3129.0,3127.4,0.4914]
[1763394966687,0.70237289,3129.0,3127.4,0.4914]
[1763394966876,0.405504,3128.8,3127.4,0.4914]
[1763394967074,0.29686889,3128.8,3127.4,0.4914]
[1763394967338,0.4997,3128.7,3127.4,0.4914]
[1763394967518,0.405504,3128.6,3127.1,0.90699264]
[1763394967706,0.405504,3128.4,3127.0,0.6381]
[1763394967905,0.405504,3128.2,3127.0,0.1467]
[1763394968220,0.70222657,3128.2,3127.0,0.1467]